lending/lending_fUSD_20260306
["ID","MTS","AMOUNT","RATE_DAILY","PERIOD"]
[407842032,1772825461436,-500.0,0.00043835,120]
[407842033,1772825461447,-1372.01,0.00043835,2]
[407842034,1772825461457,-1372.01,0.00043835,2]
[407842035,1772825461468,-1372.01,0.00043835,2]
[407842036,1772825461478,-1372.01,0.00043835,2]
[407842037,1772825461488,-1372.01,0.00043835,2]
[407842038,1772825461499,-1372.01,0.00043835,2]
[407842039,1772825461509,-1372.01,0.00043835,2]
[407842040,1772825461518,-1372.01,0.00043835,2]
[407842041,1772825461528,-1372.01,0.00043835,2]
[407842042,1772825461539,-1372.01,0.00043835,2]
[407842043,1772825461548,-1372.01,0.00043835,2]
[407842044,1772825461558,-1372.01,0.00043835,2]
[407842045,1772825461568,-1372.01,0.00043835,2]
[407842046,1772825461578,-1372.01,0.00043835,2]
[407842047,1772825461589,-1372.01,0.00043835,2]
[407842048,1772825461599,-1372.01,0.00043835,2]
[407842049,1772825461610,-1372.01,0.00043835,2]
[407842050,1772825461620,-1372.01,0.00043835,2]
[407842051,1772825461631,-1372.01,0.00043835,2]
[407842052,1772825461641,-1372.01,0.00043835,2]
[407842053,1772825461651,-1372.01,0.00043835,2]
[407842054,1772825461661,-1372.01,0.00043835,2]
[407842055,1772825461672,-1372.01,0.00043835,2]
[407842056,1772825461682,-1372.22091294,0.00043835,2]
[407842057,1772825461692,-500.0,0.00043835,2]
[407842058,1772825461710,-500.0,0.00043835,2]
[407842059,1772825461720,-500.0,0.00043835,2]
[407842060,1772825461732,-500.0,0.00043835,2]
[407842061,1772825461744,-500.0,0.00043835,2]
[407842062,1772825461754,-500.0,0.00043835,2]
[407842063,1772825461764,-500.0,0.00043835,2]
[407842064,1772825461775,-500.0,0.00043835,2]
[407842065,1772825461785,-500.0,0.00043835,2]
[407842066,1772825461795,-500.0,0.00043835,2]
[407842067,1772825461804,-500.0,0.00043835,2]
[407842068,1772825461815,-500.0,0.00043835,2]
[407842069,1772825461825,-500.0,0.00043835,2]
[407842070,1772825461835,-500.0,0.00043835,2]
[407842071,1772825461844,-500.0,0.00043835,2]
[407842072,1772825461854,-500.0,0.00043835,2]
[407842073,1772825461864,-500.0,0.00043835,2]
[407842074,1772825461874,-500.0,0.00043835,2]
[407842075,1772825461884,-238.29154999,0.00043835,2]
[407842076,1772825461895,-500.0,0.00043835,2]
[407842077,1772825461905,-500.0,0.00043835,2]
[407842078,1772825461916,-500.0,0.00043835,2]
[407842079,1772825461927,-500.0,0.00043835,2]
[407842080,1772825461937,-500.0,0.00043835,2]
[407842081,1772825461947,-500.0,0.00043835,2]
[407842082,1772825461957,-256.34675864,0.00043835,2]
[407842083,1772825461967,-300.0,0.00043835,2]
[407842084,1772825461978,-300.0,0.00043835,2]
[407842085,1772825461987,-300.0,0.00043835,2]
[407842086,1772825461998,-300.0,0.00043835,2]
[407842087,1772825462008,-300.0,0.00043835,2]
[407842088,1772825462018,-300.0,0.00043835,2]
[407842089,1772825462027,-300.0,0.00043835,2]
[407842090,1772825462037,-300.0,0.00043835,2]
[407842091,1772825462047,-300.0,0.00043835,2]
[407842092,1772825462057,-300.0,0.00043835,2]
[407842093,1772825462068,-300.0,0.00043835,2]
[407842094,1772825462078,-300.0,0.00043835,2]
[407842095,1772825462088,-300.0,0.00043835,2]
[407842096,1772825462098,-416.3906395,0.00043835,2]
[407842097,1772825462108,-1999.0,0.00043835,120]
[407842098,1772825462118,-500.0,0.00043835,2]
[407842099,1772825462128,-500.0,0.00043835,2]
[407842100,1772825462138,-500.0,0.00043835,2]
[407842101,1772825462148,-500.0,0.00043835,2]
[407842102,1772825462158,-500.0,0.00043835,2]
[407842103,1772825462168,-500.0,0.00043835,2]
[407842104,1772825462178,-500.0,0.00043835,2]
[407842105,1772825462187,-746.0,0.00043836,120]
[407842106,1772825462198,-650.0,0.00043836,10]
[407842107,1772825462207,-759.31184279,0.00043836,10]
[407842108,1772825462217,-1316.0,0.00043836,120]
[407842109,1772825462227,-800.0,0.00043836,32]
[407842110,1772825462237,-800.0,0.00043836,32]
[407842111,1772825462247,-164.83157446,0.00043836,5]
[407842112,1772825462257,-746.0,0.00043836,120]
[407842113,1772825462267,-20000.0,0.00043836,120]
[407842114,1772825462277,-164.73364074,0.0004384,120]
[407842115,1772825462287,-164.73364074,0.0004384,120]
[407842116,1772825462297,-164.73364074,0.0004384,120]
[407842117,1772825462307,-164.73364074,0.0004384,120]
[407842118,1772825462318,-164.73364074,0.0004384,120]
[407842119,1772825462327,-164.73364074,0.0004384,120]
[407842120,1772825462337,-164.73364074,0.0004384,120]
[407842121,1772825462348,-164.73364074,0.0004384,120]
[407842122,1772825462358,-164.73364074,0.0004384,120]
[407842123,1772825462368,-164.73364074,0.0004384,120]
[407842124,1772825462378,-164.73364074,0.0004384,120]
[407842125,1772825462388,-164.73364074,0.0004384,120]
[407842126,1772825462398,-164.73364074,0.0004384,120]
[407842127,1772825462408,-164.73364074,0.0004384,120]
[407842128,1772825462418,-164.73364074,0.0004384,120]
[407842129,1772825462428,-164.73364074,0.0004384,120]
[407842130,1772825462439,-164.73364074,0.0004384,120]
[407842131,1772825462448,-164.73364074,0.0004384,120]
[407842132,1772825462460,-164.73364074,0.0004384,120]
[407842133,1772825462481,-164.73,0.0004384,120]
[407842134,1772825462493,-384.37849507,0.0004384,120]
[407842135,1772825462503,-384.37849507,0.0004384,120]
[407842136,1772825462514,-384.37849507,0.0004384,120]
[407842137,1772825462523,-384.37849507,0.0004384,120]
[407842138,1772825462533,-384.37849507,0.0004384,120]
[407842139,1772825462543,-384.37849507,0.0004384,120]
[407842140,1772825462552,-384.37849507,0.0004384,120]
[407842141,1772825462562,-384.37849507,0.0004384,120]
[407842142,1772825462573,-384.37849507,0.0004384,120]
[407842143,1772825462583,-384.37849507,0.0004384,120]
[407842144,1772825462592,-384.37849507,0.0004384,120]
[407842145,1772825462602,-384.37849507,0.0004384,120]
[407842146,1772825462612,-384.37849507,0.0004384,120]
[407842147,1772825462622,-384.37849507,0.0004384,120]
[407842148,1772825462632,-384.37849507,0.0004384,120]
[407842149,1772825462641,-384.37849507,0.0004384,120]
[407842150,1772825462651,-384.37849507,0.0004384,120]
[407842151,1772825462663,-384.37849507,0.0004384,120]
[407842152,1772825462676,-384.37849507,0.0004384,120]
[407842153,1772825462686,-384.37,0.0004384,120]
[407842154,1772825462699,-177.28404356,0.0004384,120]
[407842155,1772825462710,-177.28404356,0.0004384,120]
[407842156,1772825462721,-177.28404356,0.0004384,120]
[407842157,1772825462731,-177.28404356,0.0004384,120]
[407842158,1772825462744,-177.28,0.0004384,120]
[407842159,1772825462755,-159.10106474,0.0004384,120]
[407842160,1772825462765,-159.10106474,0.0004384,120]
[407842161,1772825462777,-159.10106474,0.0004384,120]
[407842162,1772825462787,-159.10106474,0.0004384,120]
[407842163,1772825462798,-159.10106474,0.0004384,120]
[407842164,1772825462808,-159.10106474,0.0004384,120]
[407842165,1772825462820,-159.10106474,0.0004384,120]
[407842166,1772825462830,-159.10106474,0.0004384,120]
[407842167,1772825462840,-980.39,0.0004389,7]
[407842168,1772825462851,-507.3626941,0.000439,120]
[407842169,1772825462862,-174.52022365,0.000439,120]
[407842170,1772825462872,-208.04415912,0.000439,120]
[407842171,1772825462884,-156.4697347,0.00043949,2]
[407842172,1772825462894,-1042.7,0.00043952,120]
[407842173,1772825462904,-1096.79723223,0.00043987,120]
[407842174,1772825462914,-500.0,0.00044,120]
[407842175,1772825462925,-217.692813,0.00044,120]
[407842176,1772825462935,-1652.91405644,0.00044,2]
[407842177,1772825462946,-50784.90330786,0.00044,2]
[407842178,1772825462958,-423.50483209,0.00044,120]
[407842179,1772825462968,-1408.38119958,0.00044,120]
[407842180,1772825462978,-1230.58880999,0.00044,120]
[407842181,1772825462988,-246.94252637,0.00044,120]
[407842182,1772825462998,-654.37008131,0.00044,2]
[407842183,1772825463010,-5879.16840946,0.00044,30]
[407842184,1772825463022,-563.075186,0.00044,57]
[407842185,1772825463032,-298.0,0.00044,120]
[407842186,1772825463042,-350.0,0.00044033,2]
[407842187,1772825463053,-500.0,0.00044046,2]
[407842188,1772825463063,-259.860044,0.00044067,30]
[407842189,1772825463074,-81496.89796596,0.000441,2]
[407842190,1772825463083,-151.0,0.000441,120]
[407842191,1772825463093,-200.0,0.000441,120]
[407842192,1772825463104,-200.0,0.000441,120]
[407842193,1772825463114,-200.0,0.000441,120]
[407842194,1772825463283,-200.0,0.000441,120]
[407842195,1772825463294,-151.0,0.000441,14]
[407842196,1772825463304,-732.794215,0.000441,120]
[407842197,1772825463314,-732.794215,0.000441,120]
[407842198,1772825463324,-732.794215,0.000441,120]
[407842199,1772825463334,-732.794215,0.000441,120]
[407842200,1772825463344,-400.523151,0.000441,120]
[407842201,1772825463354,-400.523151,0.000441,120]
[407842202,1772825463364,-400.523151,0.000441,120]
[407842203,1772825463374,-400.523151,0.000441,120]
[407842204,1772825463384,-176.753931,0.000441,120]
[407842205,1772825463393,-176.753931,0.000441,120]
[407842206,1772825463403,-151.0,0.000441,120]
[407842207,1772825463414,-176.753931,0.000441,120]
[407842208,1772825463423,-176.753931,0.000441,120]
[407842209,1772825463433,-151.0,0.000441,120]
[407842210,1772825463443,-151.0,0.000441,120]
[407842211,1772825463453,-151.0,0.000441,7]
[407842212,1772825463463,-151.0,0.000441,7]
[407842213,1772825463473,-151.0,0.000441,7]
[407842214,1772825463482,-151.0,0.000441,7]
[407842215,1772825463492,-268.443465,0.000441,120]
[407842216,1772825463502,-151.0,0.000441,120]
[407842217,1772825463513,-151.0,0.000441,120]
[407842218,1772825463522,-151.0,0.000441,120]
[407842219,1772825463532,-279.245746,0.000441,120]
[407842220,1772825463543,-272.9349,0.000441,120]
[407842221,1772825463553,-279.245746,0.000441,120]
[407842222,1772825463563,-279.245746,0.000441,120]
[407842223,1772825463573,-279.245746,0.000441,120]
[407842224,1772825463584,-151.0,0.000441,120]
[407842225,1772825463594,-151.0,0.000441,120]
[407842226,1772825463605,-151.0,0.000441,120]
[407842227,1772825463616,-254.851559,0.000441,120]
[407842228,1772825463626,-1447.985089,0.000441,120]
[407842229,1772825463636,-1447.985089,0.000441,120]
[407842230,1772825463645,-1447.985089,0.000441,120]
[407842231,1772825463656,-1447.985089,0.000441,120]
[407842232,1772825463666,-160.195127,0.000441,120]
[407842233,1772825463676,-151.0,0.000441,120]
[407842234,1772825463688,-151.0,0.000441,120]
[407842235,1772825463700,-222.139838,0.000441,120]
[407842236,1772825463711,-222.139838,0.000441,120]
[407842237,1772825463722,-222.139838,0.000441,120]
[407842238,1772825463734,-222.139838,0.000441,120]
[407842239,1772825463746,-151.0,0.000441,120]
[407842240,1772825463756,-151.0,0.000441,120]
[407842241,1772825463767,-151.0,0.000441,120]
[407842242,1772825463778,-151.0,0.000441,120]
[407842243,1772825463789,-151.0,0.000441,120]
[407842244,1772825463799,-151.0,0.000441,120]
[407842245,1772825463809,-151.0,0.000441,120]
[407842246,1772825463819,-151.0,0.000441,120]
[407842247,1772825463829,-151.0,0.000441,120]
[407842248,1772825463840,-31833.9151,0.000441,120]
[407842249,1772825463850,-31833.9151,0.000441,120]
[407842250,1772825463861,-480.465724,0.000441,14]
[407842251,1772825463872,-151.0,0.000441,120]
[407842252,1772825463883,-203.661833,0.000441,120]
[407842253,1772825463893,-31833.9151,0.000441,120]
[407842254,1772825463905,-492.055808,0.000441,120]
[407842255,1772825463914,-480.465724,0.000441,14]
[407842256,1772825463924,-151.0,0.000441,120]
[407842257,1772825463934,-203.661833,0.000441,120]
[407842258,1772825463945,-31833.9151,0.000441,120]
[407842259,1772825463954,-492.055808,0.000441,120]
[407842260,1772825463966,-480.465724,0.000441,14]
[407842261,1772825463975,-282.012712,0.000441,120]
[407842262,1772825463985,-203.661833,0.000441,120]
[407842263,1772825463995,-480.465724,0.000441,14]
[407842264,1772825464006,-492.055808,0.000441,120]
[407842265,1772825464015,-399.099616,0.000441,2]
[407842266,1772825464026,-203.661833,0.000441,120]
[407842267,1772825464035,-492.055808,0.000441,120]
[407842268,1772825464045,-399.099616,0.000441,2]
[407842269,1772825464055,-399.099616,0.000441,2]
[407842270,1772825464064,-399.099616,0.000441,2]
[407842271,1772825464073,-340.992679,0.000441,120]
[407842272,1772825464083,-340.992679,0.000441,120]
[407842273,1772825464092,-340.992679,0.000441,120]
[407842274,1772825464101,-340.992679,0.000441,120]
[407842275,1772825464110,-151.0,0.000441,120]
[407842276,1772825464119,-151.0,0.000441,120]
[407842277,1772825464129,-151.0,0.000441,120]
[407842278,1772825464138,-225.482149,0.000441,28]
[407842279,1772825464147,-225.482149,0.000441,28]
[407842280,1772825464156,-225.482149,0.000441,28]
[407842281,1772825464166,-225.482149,0.000441,28]
[407842282,1772825464176,-151.0,0.000441,120]
[407842283,1772825464184,-151.0,0.000441,120]
[407842284,1772825464193,-151.0,0.000441,120]
[407842285,1772825464203,-151.0,0.000441,120]
[407842286,1772825464212,-163.118199,0.000441,120]
[407842287,1772825464222,-257.4446,0.000441,120]
[407842288,1772825464231,-168.903882,0.000441,120]
[407842289,1772825464241,-159.044811,0.000441,120]
[407842290,1772825464250,-151.0,0.000441,120]
[407842291,1772825464260,-161.676846,0.000441,120]
[407842292,1772825464269,-151.0,0.000441,120]
[407842293,1772825464279,-200.805006,0.000441,120]
[407842294,1772825464288,-216.67011,0.000441,120]
[407842295,1772825464298,-151.0,0.000441,120]
[407842296,1772825464307,-215.106906,0.000441,120]
[407842297,1772825464317,-216.67011,0.000441,120]
[407842298,1772825464326,-151.0,0.000441,30]
[407842299,1772825464336,-216.67011,0.000441,120]
[407842300,1772825464346,-216.67011,0.000441,120]
[407842301,1772825464355,-151.0,0.000441,120]
[407842302,1772825464364,-151.0,0.000441,120]
[407842303,1772825464374,-286.149024,0.000441,120]
[407842304,1772825464383,-151.0,0.000441,120]
[407842305,1772825464392,-151.0,0.000441,120]
[407842306,1772825464401,-151.0,0.000441,120]
[407842307,1772825464411,-151.0,0.000441,120]
[407842308,1772825464421,-1035.164431,0.000441,120]
[407842309,1772825464431,-151.0,0.000441,120]
[407842310,1772825464440,-248.206969,0.000441,120]
[407842311,1772825464449,-151.0,0.000441,120]
[407842312,1772825464459,-1035.164431,0.000441,120]
[407842313,1772825464468,-151.0,0.000441,120]
[407842314,1772825464477,-248.206969,0.000441,120]
[407842315,1772825464487,-1035.164431,0.000441,120]
[407842316,1772825464497,-151.0,0.000441,120]
[407842317,1772825464506,-248.206969,0.000441,120]
[407842318,1772825464515,-1035.164431,0.000441,120]
[407842319,1772825464524,-151.0,0.000441,120]
[407842320,1772825464533,-151.0,0.000441,30]
[407842321,1772825464545,-248.206969,0.000441,120]
[407842322,1772825464554,-151.0,0.000441,30]
[407842323,1772825464563,-151.0,0.000441,30]
[407842324,1772825464572,-274.797957,0.000441,30]
[407842325,1772825464581,-1236.417622,0.000441,120]
[407842326,1772825464592,-156.21945,0.000441,120]
[407842327,1772825464601,-1236.417622,0.000441,120]
[407842328,1772825464611,-156.21945,0.000441,120]
[407842329,1772825464620,-1236.417622,0.000441,120]
[407842330,1772825464630,-156.21945,0.000441,120]
[407842331,1772825464639,-156.21945,0.000441,120]
[407842332,1772825464648,-1236.417622,0.000441,120]
[407842333,1772825464657,-151.0,0.000441,120]
[407842334,1772825464666,-746.0,0.0004411,120]
[407842335,1772825464675,-746.0,0.0004411,120]
[407842336,1772825464685,-418.82,0.00044133,120]
[407842337,1772825464693,-13407.19478314,0.000442,7]
[407842338,1772825464706,-150.0,0.000442,73]
[407842339,1772825464715,-156.4697347,0.00044223,2]
[407842340,1772825464725,-159.10106474,0.00044236,120]
[407842341,1772825464735,-500.0,0.00044246,120]
[407842342,1772825464744,-150.0,0.00044281,120]
[407842343,1772825464754,-133327.38892608,0.000443,60]
[407842344,1772825464763,-117742.82660366,0.00044333,2]
[407842345,1772825464773,-746.0,0.00044384,120]
[407842346,1772825464783,-750.0,0.00044384,10]
[407842347,1772825464791,-746.0,0.00044384,120]
[407842348,1772825464801,-847.0,0.00044394,16]
[407842349,1772825464810,-418.82,0.00044407,120]
[407842350,1772825464819,-6422.4481489,0.0004444,120]
[407842351,1772825464828,-10594.32785294,0.00044475,120]
[407842352,1772825464837,-293.355143,0.00044475,120]
[407842353,1772825464846,-162.173486,0.00044475,120]
[407842354,1772825464855,-162.173486,0.00044475,120]
[407842355,1772825464864,-162.173486,0.00044475,120]
[407842356,1772825464873,-162.173486,0.00044475,120]
[407842357,1772825464882,-151.0,0.00044475,120]
[407842358,1772825464890,-1000.0,0.00044488,60]
[407842359,1772825464899,-1000.0,0.00044488,60]
[407842360,1772825464909,-1000.0,0.00044488,60]
[407842361,1772825464918,-1000.0,0.00044488,60]
[407842362,1772825464927,-1000.0,0.00044488,60]
[407842363,1772825464936,-1000.0,0.00044488,60]
[407842364,1772825464945,-1000.0,0.00044488,60]
[407842365,1772825464954,-1000.0,0.00044488,60]
[407842366,1772825464970,-1000.0,0.00044488,60]
[407842367,1772825464986,-1000.0,0.00044488,60]
[407842368,1772825464999,-1000.0,0.00044488,60]
[407842369,1772825465011,-1000.0,0.00044488,60]
[407842370,1772825465027,-1000.0,0.00044488,60]
[407842371,1772825465042,-1000.0,0.00044488,60]
[407842372,1772825465057,-1000.0,0.00044488,60]
[407842373,1772825465072,-1000.0,0.00044488,60]
[407842374,1772825465085,-1000.0,0.00044488,60]
[407842375,1772825465097,-1000.0,0.00044488,60]
[407842376,1772825465112,-1000.0,0.00044488,60]
[407842377,1772825465127,-1000.0,0.00044488,60]
[407842378,1772825465142,-1000.0,0.00044488,60]
[407842379,1772825465156,-1000.0,0.00044488,60]
[407842380,1772825465171,-1000.0,0.00044488,60]
[407842381,1772825465185,-1000.0,0.00044488,60]
[407842382,1772825465201,-1000.0,0.00044488,60]
[407842383,1772825465216,-1000.0,0.00044488,60]
[407842384,1772825465231,-1000.0,0.00044488,60]
[407842385,1772825465244,-1000.0,0.00044488,60]
[407842386,1772825465259,-1000.0,0.00044488,60]
[407842387,1772825465275,-1000.0,0.00044488,60]
[407842388,1772825465289,-1000.0,0.00044488,60]
[407842389,1772825465303,-1000.0,0.00044488,60]
[407842390,1772825465317,-1000.0,0.00044488,60]
[407842391,1772825465331,-1000.0,0.00044488,60]
[407842392,1772825465344,-1000.0,0.00044488,60]
[407842393,1772825465364,-1000.0,0.00044488,60]
[407842394,1772825465376,-1000.0,0.00044488,60]
[407842395,1772825465387,-1000.0,0.00044488,60]
[407842396,1772825465399,-1000.0,0.00044488,60]
[407842397,1772825465414,-1000.0,0.00044488,60]
[407842398,1772825465427,-1000.0,0.00044488,60]
[407842399,1772825465439,-1000.0,0.00044488,60]
[407842400,1772825465452,-1000.0,0.00044488,60]
[407842401,1772825465464,-1000.0,0.00044488,60]
[407842402,1772825465477,-1000.0,0.00044488,60]
[407842403,1772825465489,-1000.0,0.00044488,60]
[407842404,1772825465502,-1000.0,0.00044488,60]
[407842405,1772825465515,-1000.0,0.00044488,60]
[407842406,1772825465528,-1000.0,0.00044488,60]
[407842407,1772825465541,-1000.0,0.00044488,60]
[407842408,1772825465554,-1000.0,0.00044488,60]
[407842409,1772825465568,-1000.0,0.00044488,60]
[407842410,1772825465580,-1000.0,0.00044488,60]
[407842411,1772825465593,-1000.0,0.00044488,60]
[407842412,1772825465606,-1000.0,0.00044488,60]
[407842413,1772825465619,-1000.0,0.00044488,60]
[407842414,1772825465632,-1000.0,0.00044488,60]
[407842415,1772825465646,-1000.0,0.00044488,60]
[407842416,1772825465658,-1000.0,0.00044488,60]
[407842417,1772825465671,-1000.0,0.00044488,60]
[407842418,1772825465686,-1000.0,0.00044488,60]
[407842419,1772825465704,-1000.0,0.00044488,60]
[407842420,1772825465716,-1000.0,0.00044488,60]
[407842421,1772825465729,-1228.0,0.00044488,60]
[407842422,1772825465744,-151.0,0.00044488,120]
[407842423,1772825465757,-151.0,0.00044488,120]
[407842424,1772825465772,-151.0,0.00044488,120]
[407842425,1772825465784,-151.0,0.00044488,120]
[407842426,1772825465796,-151.0,0.00044488,120]
[407842427,1772825465808,-151.0,0.00044488,120]
[407842428,1772825465820,-151.0,0.00044488,120]
[407842429,1772825465833,-151.0,0.00044488,120]
[407842430,1772825465846,-151.0,0.00044488,120]
[407842431,1772825465858,-151.0,0.00044488,120]
[407842432,1772825465871,-151.0,0.00044488,120]
[407842433,1772825465883,-151.0,0.00044488,120]
[407842434,1772825465896,-156.4697347,0.00044497,2]
[407842435,1772825465908,-162.1,0.00044498,120]
[407842436,1772825465920,-162.1,0.00044498,120]
[407842437,1772825465933,-151.29,0.00044498,120]
[407842438,1772825465946,-162.15,0.00044498,120]
[407842439,1772825465959,-152.0,0.000445,120]
[407842440,1772825465972,-179.69164595,0.000445,120]
[407842441,1772825465984,-298.0,0.000445,120]
[407842442,1772825465997,-151.65,0.00044533,120]
[407842443,1772825466011,-162.11,0.00044533,120]
[407842444,1772825466023,-162.11,0.00044534,120]
[407842445,1772825466037,-500.0,0.00044543,60]
[407842446,1772825466053,-500.0,0.00044543,60]
[407842447,1772825466065,-500.0,0.00044543,60]
[407842448,1772825466078,-500.0,0.00044543,60]
[407842449,1772825466090,-500.0,0.00044543,60]
[407842450,1772825466103,-500.0,0.00044543,60]
[407842451,1772825466115,-500.0,0.00044543,60]
[407842452,1772825466127,-500.0,0.00044543,60]
[407842453,1772825466140,-500.0,0.00044543,60]
[407842454,1772825466152,-500.0,0.00044543,60]
[407842455,1772825466164,-500.0,0.00044543,60]
[407842456,1772825466176,-500.0,0.00044543,60]
[407842457,1772825466188,-500.0,0.00044543,60]
[407842458,1772825466200,-500.0,0.00044543,60]
[407842459,1772825466214,-500.0,0.00044543,60]
[407842460,1772825466226,-500.0,0.00044543,60]
[407842461,1772825466239,-2803.0,0.00044546,16]
[407842462,1772825466252,-162.1,0.00044598,120]
[407842463,1772825466267,-151.29,0.00044598,120]
[407842464,1772825466278,-162.15,0.00044598,120]
[407842465,1772825466292,-154.0,0.000446,120]
[407842466,1772825466303,-515.61,0.000446,14]
[407842467,1772825466316,-243.17368549,0.0004463,7]
[407842468,1772825466328,-243.17368549,0.0004463,7]
[407842469,1772825466340,-151.65,0.00044633,120]
[407842470,1772825466352,-162.11,0.00044633,120]
[407842471,1772825466366,-500.0,0.00044657,120]
[407842472,1772825466379,-689.2245228,0.00044657,120]
[407842473,1772825466391,-746.0,0.00044658,120]
[407842474,1772825466403,-1042.7,0.00044671,120]
[407842475,1772825466415,-418.82,0.00044681,120]
[407842476,1772825466428,-162.1,0.00044698,120]
[407842477,1772825466440,-151.29,0.00044698,120]
[407842478,1772825466452,-162.15,0.00044698,120]
[407842479,1772825466464,-151.65,0.00044733,120]
[407842480,1772825466476,-162.11,0.00044733,120]
[407842481,1772825466487,-153.0,0.00044737,3]
[407842482,1772825466501,-835.0,0.00044745,16]
[407842483,1772825466512,-825.0,0.0004476,120]
[407842484,1772825466525,-418.96621,0.00044762,120]
[407842485,1772825466536,-418.96621,0.00044762,120]
[407842486,1772825466548,-209.670155,0.00044762,120]
[407842487,1772825466561,-418.96621,0.00044762,120]
[407842488,1772825466573,-209.670155,0.00044762,120]
[407842489,1772825466585,-418.96621,0.00044762,120]
[407842490,1772825466598,-209.670155,0.00044762,120]
[407842491,1772825466610,-209.670155,0.00044762,120]
[407842492,1772825466622,-156.4697347,0.00044771,2]
[407842493,1772825466634,-3207.20497247,0.0004478,30]
[407842494,1772825466646,-4810.256,0.00044796,30]
[407842495,1772825466659,-162.1,0.00044798,120]
[407842496,1772825466671,-151.29,0.00044798,120]
[407842497,1772825466682,-162.18,0.00044798,120]
[407842498,1772825466700,-1097.78831007,0.000448,120]
[407842499,1772825466712,-151.65,0.00044833,120]
[407842500,1772825466721,-162.11,0.00044833,120]
[407842501,1772825466730,-152.0,0.00044857,8]
[407842502,1772825466740,-456.0,0.00044886,120]
[407842503,1772825466749,-602.19868101,0.0004489,120]
[407842504,1772825466759,-151.29,0.00044898,120]
[407842505,1772825466769,-2455.963,0.000449,120]
[407842506,1772825466779,-2455.963,0.000449,120]
[407842507,1772825466788,-2455.96,0.000449,120]
[407842508,1772825466799,-11003.86822275,0.000449,7]
[407842509,1772825466808,-414.04190976,0.000449,30]
[407842510,1772825466818,-37808.452865,0.000449,120]
[407842511,1772825466827,-151.0,0.000449,120]
[407842512,1772825466836,-174.675152,0.000449,120]
[407842513,1772825466845,-174.675152,0.000449,120]
[407842514,1772825466854,-277.980163,0.000449,15]
[407842515,1772825466863,-174.675152,0.000449,120]
[407842516,1772825466872,-277.980163,0.000449,15]
[407842517,1772825466881,-174.675152,0.000449,120]
[407842518,1772825466890,-277.980163,0.000449,15]
[407842519,1772825466899,-277.980163,0.000449,15]
[407842520,1772825466909,-151.0,0.000449,120]
[407842521,1772825466919,-151.0,0.000449,120]
[407842522,1772825466928,-151.0,0.000449,120]
[407842523,1772825466936,-151.0,0.000449,120]
[407842524,1772825466946,-151.0,0.000449,2]
[407842525,1772825466955,-151.0,0.000449,120]
[407842526,1772825467276,-151.0,0.000449,2]
[407842527,1772825467302,-188.0,0.000449,2]
[407842528,1772825467315,-150.0,0.00044907,14]
[407842529,1772825467324,-150.0,0.00044907,14]
[407842530,1772825467333,-199.9553466,0.00044907,14]
[407842531,1772825467342,-746.0,0.00044932,120]